[Event "Late-Titled-Tuesday-Blitz-October-03-2023"]
[Site "Chess.com"]
[Date "2023.10.03"]
[Round "2"]
[White "PNEPaul"]
[Black "MasterKroket"]
[Result "0-1"]
[WhiteElo "1947"]
[BlackElo "2392"]
[TimeControl "180+1"]
[EndTime "14:16:13 PDT"]
[Termination "MasterKroket won on time"]

1. e4 {[%clk 0:03:00.9]} 1... e5 {[%clk 0:02:56.1]} 2. Nf3 {[%clk 0:03:00.1]}
2... Nc6 {[%clk 0:02:56.6]} 3. Bc4 {[%clk 0:02:59.7]} 3... Nf6 {[%clk
0:02:56.2]} 4. d4 {[%clk 0:02:59.2]} 4... exd4 {[%clk 0:02:55.2]} 5. O-O {[%clk
0:02:58.9]} 5... Nxe4 {[%clk 0:02:51.1]} 6. Re1 {[%clk 0:02:58.3]} 6... d5
{[%clk 0:02:51.7]} 7. Bxd5 {[%clk 0:02:58.3]} 7... Qxd5 {[%clk 0:02:52.6]} 8.
Nc3 {[%clk 0:02:58.2]} 8... Qa5 {[%clk 0:02:52.4]} 9. Nxe4 {[%clk 0:02:58.3]}
9... Be6 {[%clk 0:02:52]} 10. Neg5 {[%clk 0:02:58.4]} 10... O-O-O {[%clk
0:02:50.7]} 11. Nxe6 {[%clk 0:02:58.2]} 11... fxe6 {[%clk 0:02:51.1]} 12. Bg5
{[%clk 0:02:57.9]} 12... Rd5 {[%clk 0:02:41.2]} 13. Bd2 {[%clk 0:02:22.2]} 13...
Qc5 {[%clk 0:02:32.2]} 14. Qe2 {[%clk 0:02:12.4]} 14... e5 {[%clk 0:02:29.9]}
15. Qe4 {[%clk 0:02:04]} 15... Bd6 {[%clk 0:02:21.6]} 16. b4 {[%clk 0:02:00.4]}
16... Qc4 {[%clk 0:02:21.8]} 17. c3 {[%clk 0:01:36.2]} 17... Rd8 {[%clk
0:02:11.1]} 18. cxd4 {[%clk 0:01:31]} 18... Nxd4 {[%clk 0:02:10.8]} 19. Nxd4
{[%clk 0:01:04.9]} 19... Qxd4 {[%clk 0:02:08.3]} 20. Qf5+ {[%clk 0:01:02.6]}
20... Kb8 {[%clk 0:02:05.3]} 21. Be3 {[%clk 0:01:02.6]} 21... Qd3 {[%clk
0:01:59.1]} 22. Qf3 {[%clk 0:00:52.9]} 22... e4 {[%clk 0:01:54]} 23. Qh3 {[%clk
0:00:52]} 23... Bxb4 {[%clk 0:01:47.2]} 24. Rf1 {[%clk 0:00:45.7]} 24... h6
{[%clk 0:01:44.2]} 25. Qg4 {[%clk 0:00:42.2]} 25... g5 {[%clk 0:01:39.8]} 26.
Qh5 {[%clk 0:00:36.4]} 26... Bf8 {[%clk 0:01:33.3]} 27. g3 {[%clk 0:00:30.3]}
27... Qa6 {[%clk 0:01:28.1]} 28. Rad1 {[%clk 0:00:27.1]} 28... Qe6 {[%clk
0:01:27.4]} 29. Rxd5 {[%clk 0:00:23.9]} 29... Rxd5 {[%clk 0:01:27.4]} 30. Rd1
{[%clk 0:00:20.1]} 30... Rxd1+ {[%clk 0:01:26.1]} 31. Qxd1 {[%clk 0:00:19.7]}
31... Bd6 {[%clk 0:01:22.6]} 32. Qd4 {[%clk 0:00:19.4]} 32... b6 {[%clk
0:01:22.2]} 33. Qh8+ {[%clk 0:00:17.8]} 33... Kb7 {[%clk 0:01:22.3]} 34. Qh7
{[%clk 0:00:17.2]} 34... a5 {[%clk 0:01:16.1]} 35. a4 {[%clk 0:00:14.7]} 35...
Bc5 {[%clk 0:01:01.8]} 36. Bxc5 {[%clk 0:00:12.9]} 36... bxc5 {[%clk 0:01:02.7]}
37. Qh8 {[%clk 0:00:09.5]} 37... c4 {[%clk 0:01:00.6]} 38. Qb2+ {[%clk
0:00:08.4]} 38... Qb6 {[%clk 0:01:01.2]} 39. Qe2 {[%clk 0:00:06.3]} 39... Qc6
{[%clk 0:01:00.9]} 40. Qb2+ {[%clk 0:00:05.7]} 40... Ka6 {[%clk 0:00:59.8]} 41.
Qc2 {[%clk 0:00:04]} 41... Qd5 {[%clk 0:00:57.1]} 42. Qc3 {[%clk 0:00:01.6]}
42... c6 {[%clk 0:00:55.4]} 0-1

[Event "Late-Titled-Tuesday-Blitz-October-03-2023"]
[Site "Chess.com"]
[Date "2023.10.03"]
[Round "2"]
[White "Marcin"]
[Black "davigator"]
[Result "0-1"]
[WhiteElo "2485"]
[BlackElo "2310"]
[TimeControl "180+1"]
[EndTime "14:16:20 PDT"]
[Termination "davigator won by resignation"]

1. Nf3 {[%clk 0:01:47.1]} 1... Nf6 {[%clk 0:02:58.4]} 2. c4 {[%clk 0:01:47.2]}
2... g6 {[%clk 0:02:58.4]} 3. Nc3 {[%clk 0:01:47.8]} 3... d6 {[%clk 0:02:58]} 4.
d4 {[%clk 0:01:48]} 4... Bg7 {[%clk 0:02:58.5]} 5. e4 {[%clk 0:01:48.6]} 5...
O-O {[%clk 0:02:58.9]} 6. Be2 {[%clk 0:01:48]} 6... Nc6 {[%clk 0:02:58.6]} 7. d5
{[%clk 0:01:47.3]} 7... Nb4 {[%clk 0:02:58.6]} 8. O-O {[%clk 0:01:45.7]} 8... a5
{[%clk 0:02:58.2]} 9. Nd4 {[%clk 0:01:43.8]} 9... Nd7 {[%clk 0:02:54.4]} 10. Be3
{[%clk 0:01:43.1]} 10... Na6 {[%clk 0:02:45.9]} 11. Kh1 {[%clk 0:01:41]} 11...
Nac5 {[%clk 0:02:45.6]} 12. f4 {[%clk 0:01:40.2]} 12... Nf6 {[%clk 0:02:45.3]}
13. Bf3 {[%clk 0:01:40.3]} 13... Bd7 {[%clk 0:02:43.3]} 14. Qc2 {[%clk
0:01:30.3]} 14... Qc8 {[%clk 0:02:37.5]} 15. Rae1 {[%clk 0:01:26.8]} 15... c6
{[%clk 0:02:25.8]} 16. e5 {[%clk 0:01:25.8]} 16... dxe5 {[%clk 0:02:10.9]} 17.
fxe5 {[%clk 0:01:26.7]} 17... Ng4 {[%clk 0:02:10.8]} 18. e6 {[%clk 0:01:22.6]}
18... Nxe3 {[%clk 0:02:10.3]} 19. exd7 {[%clk 0:01:13.4]} 19... Nxd7 {[%clk
0:01:54.7]} 20. Nxc6 {[%clk 0:01:02.6]} 20... Nxc2 {[%clk 0:01:46.6]} 21. Nxe7+
{[%clk 0:01:02.5]} 21... Kh8 {[%clk 0:01:47.3]} 22. Nxc8 {[%clk 0:01:02]} 22...
Nxe1 {[%clk 0:01:48.2]} 23. Nd6 {[%clk 0:00:59.7]} 23... Nxf3 {[%clk 0:01:47.1]}
24. Rxf3 {[%clk 0:01:00.6]} 24... Ne5 {[%clk 0:01:46.4]} 25. Rf4 {[%clk
0:00:59.4]} 25... b6 {[%clk 0:01:45.9]} 26. Na4 {[%clk 0:00:57.6]} 26... Rab8
{[%clk 0:01:43.6]} 27. b3 {[%clk 0:00:57]} 27... Kg8 {[%clk 0:01:43.5]} 28. h4
{[%clk 0:00:52.3]} 28... h6 {[%clk 0:01:40.9]} 29. Re4 {[%clk 0:00:47.3]} 29...
Rfd8 {[%clk 0:01:39.5]} 30. Nb5 {[%clk 0:00:46.5]} 30... f5 {[%clk 0:01:37.8]}
31. Re2 {[%clk 0:00:45.7]} 31... g5 {[%clk 0:01:36.9]} 32. hxg5 {[%clk
0:00:45.3]} 32... hxg5 {[%clk 0:01:37.1]} 33. Na7 {[%clk 0:00:43.2]} 33... Kh7
{[%clk 0:01:34.5]} 34. Nc3 {[%clk 0:00:43.3]} 34... Kg6 {[%clk 0:01:33.4]} 35.
Ncb5 {[%clk 0:00:41.9]} 35... Rh8+ {[%clk 0:01:32.1]} 36. Kg1 {[%clk 0:00:41.7]}
36... Rbe8 {[%clk 0:01:28.7]} 37. d6 {[%clk 0:00:30.4]} 37... Nf3+ {[%clk
0:01:27.1]} 38. Kf2 {[%clk 0:00:30.4]} 38... Rxe2+ {[%clk 0:01:27.8]} 39. Kxe2
{[%clk 0:00:30.9]} 39... Ne5 {[%clk 0:01:24.1]} 40. Ke3 {[%clk 0:00:27.7]} 40...
Rd8 {[%clk 0:01:21.6]} 41. Kd4 {[%clk 0:00:28]} 41... f4 {[%clk 0:01:13.1]} 42.
Kd5 {[%clk 0:00:27.9]} 42... g4 {[%clk 0:01:12.6]} 43. Nc6 {[%clk 0:00:21.3]}
43... Nxc6 {[%clk 0:01:11.8]} 44. Kxc6 {[%clk 0:00:22.2]} 44... f3 {[%clk
0:01:12.2]} 45. gxf3 {[%clk 0:00:22.1]} 45... gxf3 {[%clk 0:01:10.2]} 46. Kc7
{[%clk 0:00:23]} 46... Rf8 {[%clk 0:01:02.4]} 47. d7 {[%clk 0:00:17.2]} 47... f2
{[%clk 0:01:01.5]} 48. Nd6 {[%clk 0:00:17.7]} 48... Be5 {[%clk 0:01:00.9]} 49.
Kc6 {[%clk 0:00:17.2]} 49... f1=Q {[%clk 0:00:58.5]} 50. Ne8 {[%clk 0:00:17.3]}
50... Qf3+ {[%clk 0:00:55.3]} 51. Kb5 {[%clk 0:00:17.9]} 51... Qa8 {[%clk
0:00:54.2]} 0-1

[Event "Late-Titled-Tuesday-Blitz-October-03-2023"]
[Site "Chess.com"]
[Date "2023.10.03"]
[Round "2"]
[White "familijatop71"]
[Black "Dr_crypt"]
[Result "0-1"]
[WhiteElo "2171"]
[BlackElo "2442"]
[TimeControl "180+1"]
[EndTime "14:16:22 PDT"]
[Termination "Dr_crypt won on time"]

1. e4 {[%clk 0:03:00.9]} 1... e5 {[%clk 0:02:58.5]} 2. Nf3 {[%clk 0:03:00.6]}
2... Nf6 {[%clk 0:02:59]} 3. Bc4 {[%clk 0:02:59.2]} 3... Nxe4 {[%clk 0:02:53.3]}
4. Nc3 {[%clk 0:02:59.5]} 4... Nxc3 {[%clk 0:02:52.6]} 5. dxc3 {[%clk
0:03:00.4]} 5... c6 {[%clk 0:02:52.2]} 6. Nxe5 {[%clk 0:02:52.4]} 6... d5 {[%clk
0:02:52]} 7. Bb3 {[%clk 0:02:50.1]} 7... Bd6 {[%clk 0:02:51.2]} 8. Qe2 {[%clk
0:02:39.7]} 8... O-O {[%clk 0:02:49.9]} 9. Nf3 {[%clk 0:02:04.8]} 9... Re8
{[%clk 0:02:43.2]} 10. Be3 {[%clk 0:02:05]} 10... Bf4 {[%clk 0:02:39.1]} 11.
O-O-O {[%clk 0:01:55.3]} 11... Bxe3+ {[%clk 0:02:25.9]} 12. fxe3 {[%clk
0:01:54.8]} 12... Qe7 {[%clk 0:02:17.1]} 13. Rhe1 {[%clk 0:01:46.2]} 13... Bf5
{[%clk 0:02:10.6]} 14. h3 {[%clk 0:01:29.6]} 14... b5 {[%clk 0:02:09.8]} 15. Nd4
{[%clk 0:01:25.9]} 15... Be4 {[%clk 0:02:08.4]} 16. a3 {[%clk 0:00:46.9]} 16...
a6 {[%clk 0:02:06.2]} 17. g4 {[%clk 0:00:46.7]} 17... g6 {[%clk 0:02:02.6]} 18.
h4 {[%clk 0:00:40.7]} 18... c5 {[%clk 0:02:02.2]} 19. Nf3 {[%clk 0:00:38.3]}
19... c4 {[%clk 0:02:02.3]} 20. Ba2 {[%clk 0:00:38.2]} 20... Nc6 {[%clk
0:02:01.5]} 21. h5 {[%clk 0:00:36.2]} 21... Ne5 {[%clk 0:01:22.2]} 22. Nxe5
{[%clk 0:00:34.5]} 22... Qxe5 {[%clk 0:01:21.9]} 23. hxg6 {[%clk 0:00:32.5]}
23... fxg6 {[%clk 0:01:18.7]} 24. Qd2 {[%clk 0:00:16]} 24... Rf8 {[%clk
0:01:15.5]} 25. Qd4 {[%clk 0:00:15.4]} 25... Qxd4 {[%clk 0:01:14.7]} 26. cxd4
{[%clk 0:00:10.6]} 26... Rf2 {[%clk 0:01:13.4]} 27. Rd2 {[%clk 0:00:10.7]} 27...
Raf8 {[%clk 0:01:12.5]} 28. c3 {[%clk 0:00:04.8]} 28... h5 {[%clk 0:00:58.1]}
29. Rxf2 {[%clk 0:00:03.5]} 29... Rxf2 {[%clk 0:00:57.3]} 30. Bb1 {[%clk
0:00:04.4]} 30... Bd3 {[%clk 0:00:51.2]} 31. gxh5 {[%clk 0:00:04.1]} 31... gxh5
{[%clk 0:00:50.9]} 32. Bxd3 {[%clk 0:00:04.3]} 32... cxd3 {[%clk 0:00:50.1]} 33.
Rg1+ {[%clk 0:00:03.5]} 33... Kh7 {[%clk 0:00:49.2]} 34. Rg5 {[%clk 0:00:03.7]}
34... Kh6 {[%clk 0:00:48.1]} 35. Rxd5 {[%clk 0:00:03.7]} 35... h4 {[%clk
0:00:48.1]} 36. e4 {[%clk 0:00:02.4]} 36... h3 {[%clk 0:00:47.6]} 37. Rd6+
{[%clk 0:00:03]} 37... Kg5 {[%clk 0:00:46.9]} 38. Rd5+ {[%clk 0:00:03.4]} 38...
Kg4 {[%clk 0:00:46.7]} 39. Rd8 {[%clk 0:00:02.8]} 39... h2 {[%clk 0:00:46.3]}
40. Rg8+ {[%clk 0:00:03.1]} 40... Kf3 {[%clk 0:00:45.6]} 41. Rf8+ {[%clk
0:00:03]} 41... Ke3 {[%clk 0:00:45.4]} 0-1

[Event "Late-Titled-Tuesday-Blitz-October-03-2023"]
[Site "Chess.com"]
[Date "2023.10.03"]
[Round "2"]
[White "Horokoskii"]
[Black "gabduschew"]
[Result "0-1"]
[WhiteElo "2094"]
[BlackElo "2410"]
[TimeControl "180+1"]
[EndTime "14:16:26 PDT"]
[Termination "gabduschew won by resignation"]

1. c4 {[%clk 0:03:00.9]} 1... d6 {[%clk 0:02:56.8]} 2. Nc3 {[%clk 0:02:59.2]}
2... c6 {[%clk 0:02:55.8]} 3. Nf3 {[%clk 0:02:59.2]} 3... g6 {[%clk 0:02:53.8]}
4. d4 {[%clk 0:02:59.2]} 4... Bg7 {[%clk 0:02:53.7]} 5. e4 {[%clk 0:02:57.4]}
5... Bg4 {[%clk 0:02:52.9]} 6. Be3 {[%clk 0:02:52.3]} 6... Nd7 {[%clk
0:02:44.1]} 7. h3 {[%clk 0:02:52.4]} 7... Bxf3 {[%clk 0:02:43.8]} 8. Qxf3 {[%clk
0:02:53.3]} 8... Qa5 {[%clk 0:02:34.7]} 9. Bd3 {[%clk 0:02:49.7]} 9... Qb6
{[%clk 0:02:29.2]} 10. O-O {[%clk 0:02:35.1]} 10... Qxb2 {[%clk 0:02:24.5]} 11.
Rfc1 {[%clk 0:02:24]} 11... Qb6 {[%clk 0:02:23.1]} 12. Rab1 {[%clk 0:02:18.7]}
12... Qc7 {[%clk 0:02:22.1]} 13. d5 {[%clk 0:02:14]} 13... Ne5 {[%clk
0:02:10.3]} 14. Qe2 {[%clk 0:02:12]} 14... Nxd3 {[%clk 0:02:08.8]} 15. Qxd3
{[%clk 0:02:12.9]} 15... c5 {[%clk 0:01:58.6]} 16. Nb5 {[%clk 0:02:05.4]} 16...
Qd7 {[%clk 0:01:55.2]} 17. f4 {[%clk 0:02:04.3]} 17... b6 {[%clk 0:01:46.1]} 18.
a4 {[%clk 0:02:03]} 18... Nf6 {[%clk 0:01:19.4]} 19. e5 {[%clk 0:02:02.2]} 19...
dxe5 {[%clk 0:01:19.2]} 20. fxe5 {[%clk 0:02:02.7]} 20... Nh5 {[%clk 0:01:18.4]}
21. e6 {[%clk 0:01:14.3]} 21... fxe6 {[%clk 0:01:16.5]} 22. Rf1 {[%clk
0:01:12.7]} 22... exd5 {[%clk 0:01:06.6]} 23. cxd5 {[%clk 0:01:10.4]} 23... Nf6
{[%clk 0:01:05.4]} 24. d6 {[%clk 0:01:08.4]} 24... O-O {[%clk 0:01:03.8]} 25.
Rbe1 {[%clk 0:00:51.6]} 25... exd6 {[%clk 0:01:00.8]} 26. Nxd6 {[%clk
0:00:47.4]} 26... Rad8 {[%clk 0:00:58.1]} 27. Qc4+ {[%clk 0:00:44.2]} 27... Kh8
{[%clk 0:00:56]} 28. Ne4 {[%clk 0:00:41.8]} 28... Nxe4 {[%clk 0:00:51.9]} 29.
Qxe4 {[%clk 0:00:41.9]} 29... Rxf1+ {[%clk 0:00:47.3]} 30. Rxf1 {[%clk
0:00:41.4]} 30... Re8 {[%clk 0:00:44.8]} 31. Qf3 {[%clk 0:00:19.9]} 31... Rxe3
{[%clk 0:00:42.9]} 32. Qa8+ {[%clk 0:00:17.4]} 32... Re8 {[%clk 0:00:41.9]} 33.
Qf3 {[%clk 0:00:16.9]} 33... Rf8 {[%clk 0:00:38.9]} 34. Qe2 {[%clk 0:00:14.2]}
34... Rxf1+ {[%clk 0:00:36.9]} 35. Qxf1 {[%clk 0:00:15.1]} 35... Bd4+ {[%clk
0:00:35.4]} 36. Kh1 {[%clk 0:00:15.3]} 36... Kg7 {[%clk 0:00:31.4]} 0-1

[Event "Late-Titled-Tuesday-Blitz-October-03-2023"]
[Site "Chess.com"]
[Date "2023.10.03"]
[Round "2"]
[White "pedromartinez91"]
[Black "chesskov1982"]
[Result "1-0"]
[WhiteElo "2556"]
[BlackElo "2826"]
[TimeControl "180+1"]
[EndTime "14:16:27 PDT"]
[Termination "pedromartinez91 won on time"]

1. d4 {[%clk 0:03:00.9]} 1... g6 {[%clk 0:02:55]} 2. c4 {[%clk 0:03:00.2]} 2...
Bg7 {[%clk 0:02:54.8]} 3. Nf3 {[%clk 0:03:00.1]} 3... d6 {[%clk 0:02:55.4]} 4.
Nc3 {[%clk 0:02:59.7]} 4... Nf6 {[%clk 0:02:55.5]} 5. e4 {[%clk 0:02:59.1]} 5...
c6 {[%clk 0:02:55.9]} 6. Be2 {[%clk 0:02:58.2]} 6... Nbd7 {[%clk 0:02:51.3]} 7.
O-O {[%clk 0:02:57.7]} 7... O-O {[%clk 0:02:47.6]} 8. Qc2 {[%clk 0:02:49.4]}
8... Qc7 {[%clk 0:02:44.8]} 9. Rb1 {[%clk 0:02:48.3]} 9... e5 {[%clk 0:02:42.5]}
10. Rd1 {[%clk 0:02:46.7]} 10... a6 {[%clk 0:02:39.6]} 11. b4 {[%clk 0:02:33.7]}
11... Re8 {[%clk 0:02:25.9]} 12. dxe5 {[%clk 0:02:20.1]} 12... dxe5 {[%clk
0:02:24.5]} 13. c5 {[%clk 0:02:20.6]} 13... Nf8 {[%clk 0:02:21.9]} 14. h3 {[%clk
0:02:14]} 14... Ne6 {[%clk 0:02:13.4]} 15. Be3 {[%clk 0:02:13.6]} 15... Nh5
{[%clk 0:02:07.8]} 16. Bc4 {[%clk 0:02:05.6]} 16... Nhf4 {[%clk 0:02:03.6]} 17.
Rd2 {[%clk 0:01:49.6]} 17... h6 {[%clk 0:01:57.2]} 18. Rbd1 {[%clk 0:01:48.1]}
18... Rd8 {[%clk 0:01:49.7]} 19. h4 {[%clk 0:01:42.1]} 19... Rxd2 {[%clk
0:01:45.5]} 20. Qxd2 {[%clk 0:01:43]} 20... Kh7 {[%clk 0:01:36.6]} 21. g3 {[%clk
0:01:40.5]} 21... Nh5 {[%clk 0:01:34.2]} 22. Kg2 {[%clk 0:01:40.8]} 22... Nf6
{[%clk 0:01:33.6]} 23. Qd6 {[%clk 0:01:33]} 23... Qxd6 {[%clk 0:01:28]} 24. cxd6
{[%clk 0:01:33.3]} 24... Nd7 {[%clk 0:01:19]} 25. Bxe6 {[%clk 0:01:30.2]} 25...
fxe6 {[%clk 0:01:19.9]} 26. Na4 {[%clk 0:01:27]} 26... a5 {[%clk 0:01:16.1]} 27.
Nb6 {[%clk 0:01:21]} 27... Nxb6 {[%clk 0:01:04.7]} 28. Bxb6 {[%clk 0:01:21.9]}
28... Bd7 {[%clk 0:01:03.3]} 29. bxa5 {[%clk 0:01:11.9]} 29... Kg8 {[%clk
0:00:55.9]} 30. Nd2 {[%clk 0:01:11.7]} 30... Kf7 {[%clk 0:00:50.7]} 31. Nc4
{[%clk 0:01:12.2]} 31... Bf6 {[%clk 0:00:39.2]} 32. Bc5 {[%clk 0:01:10.2]} 32...
Ke8 {[%clk 0:00:22.7]} 33. Rb1 {[%clk 0:01:02.7]} 33... Bc8 {[%clk 0:00:10.5]}
34. Bb4 {[%clk 0:01:02.7]} 34... Bd8 {[%clk 0:00:08.7]} 35. Bc3 {[%clk
0:00:59.3]} 35... b5 {[%clk 0:00:05]} 36. axb6 {[%clk 0:00:58.3]} 36... Bb7
{[%clk 0:00:05.3]} 37. Na5 {[%clk 0:00:39.4]} 37... Rb8 {[%clk 0:00:03.9]} 38.
Bxe5 {[%clk 0:00:38.8]} 38... c5 {[%clk 0:00:02.9]} 39. d7+ {[%clk 0:00:37.7]}
39... Kxd7 {[%clk 0:00:01.8]} 40. Rd1+ {[%clk 0:00:36.3]} 1-0

[Event "Late-Titled-Tuesday-Blitz-October-03-2023"]
[Site "Chess.com"]
[Date "2023.10.03"]
[Round "2"]
[White "subham777"]
[Black "Dubs123"]
[Result "1-0"]
[WhiteElo "2529"]
[BlackElo "2335"]
[TimeControl "180+1"]
[EndTime "14:16:29 PDT"]
[Termination "subham777 won on time"]

1. e4 {[%clk 0:03:00.9]} 1... c5 {[%clk 0:02:58.3]} 2. Nf3 {[%clk 0:03:00.4]}
2... a6 {[%clk 0:02:58.8]} 3. c3 {[%clk 0:03:00.1]} 3... d5 {[%clk 0:02:57.2]}
4. exd5 {[%clk 0:02:59.9]} 4... Nf6 {[%clk 0:02:57.2]} 5. d4 {[%clk 0:03:00.8]}
5... cxd4 {[%clk 0:02:56.9]} 6. cxd4 {[%clk 0:03:01.7]} 6... Nxd5 {[%clk
0:02:57.4]} 7. Nc3 {[%clk 0:03:02]} 7... Nc6 {[%clk 0:02:57.6]} 8. Bc4 {[%clk
0:03:00.9]} 8... Nb6 {[%clk 0:02:56.2]} 9. Bb3 {[%clk 0:03:00.9]} 9... Bg4
{[%clk 0:02:53.4]} 10. Bxf7+ {[%clk 0:02:57.5]} 10... Kxf7 {[%clk 0:02:53]} 11.
Ng5+ {[%clk 0:02:57.5]} 11... Ke8 {[%clk 0:02:53.2]} 12. Qxg4 {[%clk 0:02:56.1]}
12... Qxd4 {[%clk 0:02:51.9]} 13. Bf4 {[%clk 0:02:46.8]} 13... Ne5 {[%clk
0:02:39.4]} 14. Ne6 {[%clk 0:02:12.2]} 14... Qxc3+ {[%clk 0:02:15.5]} 15. bxc3
{[%clk 0:02:03]} 15... Nxg4 {[%clk 0:02:16.4]} 16. Nc7+ {[%clk 0:01:53.9]} 16...
Kd7 {[%clk 0:02:04.4]} 17. O-O-O+ {[%clk 0:01:48.8]} 17... Kc6 {[%clk
0:01:16.2]} 18. Rhe1 {[%clk 0:01:19.8]} 18... e5 {[%clk 0:01:04.6]} 19. Nxa8
{[%clk 0:01:13.1]} 19... Ba3+ {[%clk 0:00:49.3]} 20. Kb1 {[%clk 0:01:07.4]}
20... Rxa8 {[%clk 0:00:43.2]} 21. Bxe5 {[%clk 0:01:05.2]} 21... Nxf2 {[%clk
0:00:20.2]} 22. Rd2 {[%clk 0:00:53.9]} 22... Bc5 {[%clk 0:00:14.6]} 23. Bg3
{[%clk 0:00:47.7]} 23... Ng4 {[%clk 0:00:07.7]} 24. Re6+ {[%clk 0:00:48]} 24...
Kb5 {[%clk 0:00:07.6]} 25. Rb2+ {[%clk 0:00:45.6]} 25... Ka5 {[%clk 0:00:07.3]}
26. Bc7 {[%clk 0:00:35.9]} 26... Rf8 {[%clk 0:00:03.1]} 27. a4 {[%clk
0:00:20.1]} 27... Rf1+ {[%clk 0:00:01.9]} 28. Ka2 {[%clk 0:00:20.6]} 28... Rf2
{[%clk 0:00:01.8]} 29. Bxb6+ {[%clk 0:00:19.7]} 29... Bxb6 {[%clk 0:00:02.1]}
30. Rxb6 {[%clk 0:00:20.3]} 30... Rf4 {[%clk 0:00:01.2]} 31. R6b4 {[%clk
0:00:16.5]} 1-0

[Event "Late-Titled-Tuesday-Blitz-October-03-2023"]
[Site "Chess.com"]
[Date "2023.10.03"]
[Round "2"]
[White "Mikhal867"]
[Black "MajorCoast"]
[Result "1/2-1/2"]
[WhiteElo "2472"]
[BlackElo "2248"]
[TimeControl "180+1"]
[EndTime "14:16:32 PDT"]
[Termination "Game drawn by stalemate"]

1. d4 {[%clk 0:03:00.9]} 1... d5 {[%clk 0:02:55.6]} 2. c4 {[%clk 0:03:00.7]}
2... e6 {[%clk 0:02:55.1]} 3. Nf3 {[%clk 0:03:00.4]} 3... Nf6 {[%clk 0:02:54.7]}
4. g3 {[%clk 0:03:00.3]} 4... Be7 {[%clk 0:02:52.3]} 5. Bg2 {[%clk 0:03:00.5]}
5... O-O {[%clk 0:02:52.8]} 6. O-O {[%clk 0:03:01.1]} 6... dxc4 {[%clk
0:02:52.4]} 7. Qc2 {[%clk 0:03:00.5]} 7... a6 {[%clk 0:02:52.1]} 8. a4 {[%clk
0:03:00.1]} 8... Bd7 {[%clk 0:02:51.4]} 9. Qxc4 {[%clk 0:02:57.6]} 9... Bc6
{[%clk 0:02:50.5]} 10. Nc3 {[%clk 0:02:54.9]} 10... b5 {[%clk 0:02:34.5]} 11.
Qb3 {[%clk 0:02:49.6]} 11... b4 {[%clk 0:02:27.4]} 12. Nb1 {[%clk 0:02:49.1]}
12... a5 {[%clk 0:02:27.5]} 13. Bf4 {[%clk 0:02:40.2]} 13... Bd5 {[%clk
0:02:24.7]} 14. Qc2 {[%clk 0:02:38.5]} 14... Bd6 {[%clk 0:02:16.6]} 15. Nbd2
{[%clk 0:02:32.8]} 15... Bxf4 {[%clk 0:02:02.8]} 16. gxf4 {[%clk 0:02:32.5]}
16... Nbd7 {[%clk 0:02:03.7]} 17. e4 {[%clk 0:02:32]} 17... Bb7 {[%clk 0:01:57]}
18. Rac1 {[%clk 0:02:24.6]} 18... Rc8 {[%clk 0:01:56.7]} 19. Ne5 {[%clk
0:02:15.9]} 19... Nxe5 {[%clk 0:01:34.8]} 20. fxe5 {[%clk 0:02:12.5]} 20... Nh5
{[%clk 0:01:31.9]} 21. Nf3 {[%clk 0:01:53.9]} 21... Nf4 {[%clk 0:01:20.5]} 22.
Rcd1 {[%clk 0:01:36.1]} 22... g5 {[%clk 0:00:55.6]} 23. h3 {[%clk 0:01:31.8]}
23... Kh8 {[%clk 0:00:46.2]} 24. Nh2 {[%clk 0:01:21.9]} 24... Rg8 {[%clk
0:00:41.6]} 25. Ng4 {[%clk 0:01:20.5]} 25... h5 {[%clk 0:00:38.3]} 26. Nf6
{[%clk 0:01:19.8]} 26... Rg6 {[%clk 0:00:34.7]} 27. Kh2 {[%clk 0:01:15.7]} 27...
g4 {[%clk 0:00:34.3]} 28. hxg4 {[%clk 0:01:10.2]} 28... hxg4 {[%clk 0:00:35.1]}
29. Rh1 {[%clk 0:01:10.3]} 29... Rh6+ {[%clk 0:00:32.6]} 30. Kg3 {[%clk
0:01:10.1]} 30... Kg7 {[%clk 0:00:13.1]} 31. Rxh6 {[%clk 0:01:06.8]} 31... Kxh6
{[%clk 0:00:14]} 32. Qd2 {[%clk 0:01:04.1]} 32... Kg5 {[%clk 0:00:11.3]} 33.
Qxf4+ {[%clk 0:01:03.7]} 33... Kg6 {[%clk 0:00:10.1]} 34. Qxg4+ {[%clk
0:01:02.7]} 34... Kh6 {[%clk 0:00:08.7]} 35. d5 {[%clk 0:01:00.5]} 35... exd5
{[%clk 0:00:07.4]} 36. exd5 {[%clk 0:00:58.8]} 36... Qe7 {[%clk 0:00:07.4]} 37.
f4 {[%clk 0:00:56]} 37... Rg8 {[%clk 0:00:06.4]} 38. Nxg8+ {[%clk 0:00:53.2]}
38... Kh7 {[%clk 0:00:05.7]} 39. Nxe7 {[%clk 0:00:52.8]} 39... c5 {[%clk
0:00:06.6]} 40. dxc6 {[%clk 0:00:52.2]} 40... b3 {[%clk 0:00:06.7]} 41. cxb7
{[%clk 0:00:50.7]} 41... f5 {[%clk 0:00:07.6]} 42. exf6 {[%clk 0:00:49]} 42...
Kh6 {[%clk 0:00:06.6]} 43. f7 {[%clk 0:00:48.9]} 43... Kh7 {[%clk 0:00:06.8]}
44. f8=N+ {[%clk 0:00:48]} 44... Kh6 {[%clk 0:00:07.7]} 45. b8=N {[%clk
0:00:47.1]} 1/2-1/2